[Event "30th Abu Dhabi Festival A-Open 2024"]
[Site "Abu Dhabi"]
[Date "2024.08.18"]
[Round "3.3"]
[White "Hamidov, Allahverdi"]
[Black "Ashwin Sairam"]
[Result "1/2-1/2"]
[ECO "A52"]
[WhiteElo "2253"]
[BlackElo "1997"]
[Annotator "ChessBase"]
[PlyCount "100"]
[EventDate "2024.08.15"]
[EventType "swiss"]
[EventCountry "UAE"]
[SourceTitle "playchess.com"]
[Source "ChessBase"]
[SourceQuality "1"]
[TimeControl "5400+30"]

1. d4 {[%emt 0:00:03]} Nf6 {[%emt 0:00:12]} 2. c4 {[%emt 0:00:12]} e5 {[%emt 0:00:16]} 3. dxe5 {[%emt 0:00:10]} Ng4 {[%emt 0:00:07]} 4. Bf4 {[%emt 0:00:14]} Nc6 {[%emt 0:00:07]} 5. Nf3 {[%emt 0:00:18]} Bb4+ {[%emt 0:00:08]} 6. Nc3 {[%emt 0:00:11]} Bxc3+ {[%emt 0:00:07]} 7. bxc3 {[%emt 0:00:03]} Qe7 {[%emt 0:00:07]} 8. Qd5 {[%emt 0:00:05]} f6 {[%emt 0:00:06]} 9. exf6 {[%emt 0:00:14]} Nxf6 {[%emt 0:00:06]} 10. Qd3 {[%emt 0:00:04]} d6 {[%emt 0:00:10]} 11. g3 {[%emt 0:00:11]} O-O {[%emt 0:00:06]} 12. Bg2 {[%emt 0:00:04]} Re8 {[%emt 0:00:06]} 13. e3 {[%emt 0:06:31]} h6 {[%emt 0:00:22]} 14. h4 {[%emt 0:37:01]} Qf7 {[%emt 0:00:22]} 15. O-O {[%emt 0:10:48]} Be6 {[%emt 0:20:17]} 16. Nd2 {[%emt 0:04:23]} Nd7 {[%emt 0:31:28]} 17. Rfd1 {[%emt 0:08:39]} Rad8 {[%emt 0:08:48]} 18. Qe2 {[%emt 0:07:58]} Nde5 {[%emt 0:06:51]} 19. Bxe5 {[%emt 0:00:41]} Nxe5 {[%emt 0:00:06]} 20. f4 {[%emt 0:03:05]} Nxc4 {[%emt 0:11:18]} 21. Bxb7 {[%emt 0:02:23]} Nb2 {[%emt 0:05:37]} 22. Re1 {[%emt 0:01:14]} Qg6 {[%emt 0:05:52]} 23. Kh2 {[%emt 0:02:35]} Nd3 {[%emt 0:01:53]} 24. Be4 {[%emt 0:02:28]} Bf5 {[%emt 0:00:06]} 25. h5 {[%emt 0:01:32]} Qh7 {[%emt 0:00:35]} 26. Bxd3 {[%emt 0:05:11]} Bxd3 {[%emt 0:00:07]} 27. Qg4 {[%emt 0:00:31]} Re7 {[%emt 0:00:38]} 28. Qh3 {[%emt 0:00:41]} Bc2 {[%emt 0:01:35]} 29. Rac1 {[%emt 0:01:42]} Rde8 {[%emt 0:00:31]} 30. g4 {[%emt 0:00:08]} Qd3 {[%emt 0:00:04]} 31. Nf1 {[%emt 0:00:11]} Rb8 {[%emt 0:01:57]} 32. Qg2 {[%emt 0:00:43]} Ba4 {[%emt 0:00:54]} 33. Qe2 {[%emt 0:00:18]} Qd5 {[%emt 0:02:33]} 34. Ng3 {[%emt 0:02:10]} Bc6 {[%emt 0:01:30]} 35. e4 {[%emt 0:00:44]} Qf7 {[%emt 0:00:06]} 36. Qf2 {[%emt 0:03:12]} Rbe8 {[%emt 0:00:24]} 37. Re3 {[%emt 0:00:41]} Bxe4 {[%emt 0:00:32]} 38. Rce1 {[%emt 0:00:02]} Bd5 {[%emt 0:00:16]} 39. a3 {[%emt 0:00:46]} Qf6 {[%emt 0:00:44]} 40. Nf5 {[%emt 0:00:38]} Rxe3 {[%emt 0:00:20]} 41. Rxe3 {[%emt 0:00:06]} Rxe3 {[%emt 0:00:17]} 42. Qxe3 {[%emt 0:00:35]} Be6 {[%emt 0:00:09]} 43. Kg3 {[%emt 0:00:50]} Bxf5 {[%emt 0:00:09]} 44. gxf5 {[%emt 0:00:06]} Qxf5 {[%emt 0:00:14]} 45. Qxa7 {[%emt 0:00:07]} Qd3+ {[%emt 0:00:15]} 46. Kg4 {[%emt 0:00:27]} Qe2+ {[%emt 0:00:32]} 47. Kh4 {[%emt 0:00:50]} Qh2+ {[%emt 0:01:13]} 48. Kg4 {[%emt 0:00:05]} Qg2+ {[%emt 0:00:06]} 49. Kh4 {[%emt 0:00:10]} Qh2+ {[%emt 0:00:36]} 50. Kg4 {[%emt 0:00:13]} Qg2+ {[%emt 0:00:06]} 1/2-1/2

[Event "30th Abu Dhabi Festival A-Open 2024"]
[Site "Abu Dhabi"]
[Date "2024.08.18"]
[Round "3.4"]
[White "Kazhmuratov, Altair"]
[Black "Md Imran"]
[Result "0-1"]
[ECO "B10"]
[WhiteElo "1994"]
[BlackElo "2225"]
[Annotator "ChessBase"]
[PlyCount "96"]
[EventDate "2024.08.15"]
[EventType "swiss"]
[EventCountry "UAE"]
[SourceTitle "playchess.com"]
[Source "ChessBase"]
[SourceQuality "1"]
[TimeControl "5400+30"]

1. e4 {[%emt 0:00:25]} c6 {[%emt 0:00:06]} 2. Nf3 {[%emt 0:02:04]} d5 {[%emt 0:00:06]} 3. d3 {[%emt 0:00:06]} g6 {[%emt 0:00:23]} 4. Nbd2 {[%emt 0:00:49]} Bg7 {[%emt 0:00:04]} 5. g3 {[%emt 0:00:03]} Bg4 {[%emt 0:01:08]} 6. Bg2 {[%emt 0:00:14]} e6 {[%emt 0:00:09]} 7. O-O {[%emt 0:01:33]} Ne7 {[%emt 0:00:02]} 8. h3 {[%emt 0:12:15]} Bxf3 {[%emt 0:02:50]} 9. Nxf3 {[%emt 0:00:02]} O-O {[%emt 0:00:08]} 10. Rb1 {[%emt 0:07:29]} Nd7 {[%emt 0:03:16]} 11. exd5 {[%emt 0:05:12]} cxd5 {[%emt 0:00:26]} 12. c4 {[%emt 0:00:35]} Qa5 {[%emt 0:03:28]} 13. a3 {[%emt 0:01:34]} Qa6 {[%emt 0:00:02]} 14. b4 {[%emt 0:01:14]} dxc4 {[%emt 0:01:48]} 15. dxc4 {[%emt 0:05:05]} Nb6 {[%emt 0:00:15]} 16. b5 {[%emt 0:03:32]} Qa4 {[%emt 0:00:17]} 17. Bg5 {[%emt 0:14:25]} Qxa3 {[%emt 0:06:25]} 18. Qe2 {[%emt 0:08:09]} Qc5 {[%emt 0:00:41]} 19. Qe4 {[%emt 0:01:53]} Nf5 {[%emt 0:00:51]} 20. Qxb7 {[%emt 0:06:32]} h6 {[%emt 0:01:28]} 21. Bf4 {[%emt 0:02:50]} e5 {[%emt 0:01:05]} 22. Bd2 {[%emt 0:00:56]} Qxc4 {[%emt 0:01:07]} 23. Rfc1 {[%emt 0:01:51]} Qe6 {[%emt 0:00:30]} 24. Qe4 {[%emt 0:06:30]} Nd6 {[%emt 0:00:15]} 25. Qb4 {[%emt 0:01:38]} Ndc4 {[%emt 0:01:58]} 26. Bc3 {[%emt 0:02:48]} Rac8 {[%emt 0:00:11]} 27. Qb3 {[%emt 0:01:14]} Rfd8 {[%emt 0:00:07]} 28. Re1 {[%emt 0:01:59]} Rd3 {[%emt 0:00:17]} 29. Rbd1 {[%emt 0:09:09]} Rxf3 {[%emt 0:02:00]} 30. Bxf3 {[%emt 0:00:02]} Nd2 {[%emt 0:00:17]} 31. Qxe6 {[%emt 0:02:05]} Nxf3+ {[%emt 0:00:01]} 32. Kf1 {[%emt 0:00:07]} fxe6 {[%emt 0:00:02]} 33. Re3 {[%emt 0:00:26]} Ng5 {[%emt 0:02:54]} 34. h4 {[%emt 0:02:00]} Nd5 {[%emt 0:00:05]} 35. Rxd5 {[%emt 0:00:40]} exd5 {[%emt 0:00:02]} 36. Bxe5 {[%emt 0:00:22]} Ne4 {[%emt 0:00:45]} 37. Bxg7 {[%emt 0:00:19]} Kxg7 {[%emt 0:00:13]} 38. Ra3 {[%emt 0:00:14]} Rc7 {[%emt 0:00:01]} 39. Ra6 {[%emt 0:00:18]} Rf7 {[%emt 0:00:05]} 40. Ke2 {[%emt 0:00:35]} Rxf2+ {[%emt 0:00:13]} 41. Ke3 {[%emt 0:00:04]} Rf7 {[%emt 0:00:02]} 42. Kd4 {[%emt 0:00:15]} Nxg3 {[%emt 0:00:03]} 43. Kxd5 {[%emt 0:00:12]} Nf5 {[%emt 0:00:05]} 44. Ra4 {[%emt 0:00:11]} Rc7 {[%emt 0:00:09]} 45. Re4 {[%emt 0:00:51]} Kf7 {[%emt 0:00:10]} 46. Rf4 {[%emt 0:00:15]} h5 {[%emt 0:00:02]} 47. Re4 {[%emt 0:00:04]} Rb7 {[%emt 0:00:05]} 48. Kc6 {[%emt 0:00:12]} Rxb5 {[%emt 0:00:05]} 0-1

[Event "30th Abu Dhabi Festival A-Open 2024"]
[Site "Abu Dhabi"]
[Date "2024.08.18"]
[Round "3.5"]
[White "Dere Pushkar"]
[Black "Khalifah, Khaled"]
[Result "1-0"]
[ECO "B12"]
[WhiteElo "2217"]
[BlackElo "1991"]
[Annotator "ChessBase"]
[PlyCount "79"]
[EventDate "2024.08.15"]
[EventType "swiss"]
[EventCountry "UAE"]
[SourceTitle "playchess.com"]
[Source "ChessBase"]
[SourceQuality "1"]
[TimeControl "5400+30"]

1. e4 {[%emt 0:01:23]} c6 {[%emt 0:00:01]} 2. d4 {[%emt 0:00:43]} d5 {[%emt 0:00:01]} 3. e5 {[%emt 0:00:11]} Bf5 {[%emt 0:00:20]} 4. h4 {[%emt 0:00:27]} c5 {[%emt 0:00:09]} 5. dxc5 {[%emt 0:00:08]} Nc6 {[%emt 0:02:05]} 6. Bb5 {[%emt 0:00:12]} Qa5+ {[%emt 0:27:11]} 7. Nc3 {[%emt 0:02:06]} a6 {[%emt 0:01:37]} 8. Bxc6+ {[%emt 0:02:46]} bxc6 {[%emt 0:01:01]} 9. Be3 {[%emt 0:01:28]} Rb8 {[%emt 0:02:15]} 10. Nge2 {[%emt 0:09:18]} Rxb2 {[%emt 0:11:23]} 11. Rb1 {[%emt 0:11:13]} Bxc2 {[%emt 0:00:33]} 12. Rxb2 {[%emt 0:00:07]} Bxd1 {[%emt 0:00:05]} 13. Rb8+ {[%emt 0:00:10]} Kd7 {[%emt 0:00:02]} 14. Kxd1 {[%emt 0:00:10]} Nh6 {[%emt 0:00:40]} 15. Kd2 {[%emt 0:01:46]} Nf5 {[%emt 0:09:32]} 16. Rb7+ {[%emt 0:02:52]} Kc8 {[%emt 0:05:15]} 17. Rhb1 {[%emt 0:00:23]} g5 {[%emt 0:01:42]} 18. e6 {[%emt 0:04:29]} fxe6 {[%emt 0:02:53]} 19. Rb8+ {[%emt 0:00:46]} Kd7 {[%emt 0:00:03]} 20. R1b7+ {[%emt 0:00:09]} Qc7 {[%emt 0:00:05]} 21. Bxg5 {[%emt 0:08:11]} e5 {[%emt 0:04:13]} 22. g4 {[%emt 0:01:51]} Ng7 {[%emt 0:02:57]} 23. Bxe7 {[%emt 0:04:21]} Ne8 {[%emt 0:05:23]} 24. Bxf8 {[%emt 0:05:01]} Rxf8 {[%emt 0:00:22]} 25. Na4 {[%emt 0:01:35]} Qxb7 {[%emt 0:01:29]} 26. Rxb7+ {[%emt 0:00:05]} Ke6 {[%emt 0:01:44]} 27. Rxh7 {[%emt 0:00:45]} Rxf2 {[%emt 0:00:02]} 28. Rh6+ {[%emt 0:00:15]} Kf7 {[%emt 0:00:06]} 29. g5 {[%emt 0:00:54]} Ng7 {[%emt 0:01:32]} 30. Rxc6 {[%emt 0:00:18]} Ne6 {[%emt 0:00:12]} 31. Nac3 {[%emt 0:01:08]} Nf4 {[%emt 0:01:18]} 32. Rf6+ {[%emt 0:00:38]} Ke8 {[%emt 0:00:48]} 33. Rf5 {[%emt 0:03:11]} d4 {[%emt 0:00:21]} 34. Rxe5+ {[%emt 0:00:22]} Kd7 {[%emt 0:00:02]} 35. Nd5 {[%emt 0:01:15]} Ng2 {[%emt 0:00:10]} 36. Nf6+ {[%emt 0:02:15]} Kc6 {[%emt 0:00:40]} 37. Ne4 {[%emt 0:00:20]} Rf1 {[%emt 0:03:34]} 38. Nxd4+ {[%emt 0:00:08]} Kc7 {[%emt 0:00:06]} 39. Re7+ {[%emt 0:00:04]} Kd8 {[%emt 0:00:16]} 40. Nc6+ {[%emt 0:00:04]} 1-0

[Event "30th Abu Dhabi Festival A-Open 2024"]
[Site "Abu Dhabi"]
[Date "2024.08.18"]
[Round "3.6"]
[White "Bashirinia, Omid"]
[Black "Manukyan, Sargis A."]
[Result "0-1"]
[ECO "D31"]
[WhiteElo "1964"]
[BlackElo "2211"]
[Annotator "ChessBase"]
[PlyCount "88"]
[EventDate "2024.08.15"]
[EventType "swiss"]
[EventCountry "UAE"]
[SourceTitle "playchess.com"]
[Source "ChessBase"]
[SourceQuality "1"]
[TimeControl "5400+30"]

1. d4 {[%emt 0:00:05]} d5 {[%emt 0:00:05]} 2. c4 {[%emt 0:00:13]} e6 {[%emt 0:00:04]} 3. Nc3 {[%emt 0:00:21]} a6 {[%emt 0:00:06]} 4. cxd5 {[%emt 0:01:59]} exd5 {[%emt 0:00:05]} 5. Nf3 {[%emt 0:00:22]} h6 {[%emt 0:00:05]} 6. Bf4 {[%emt 0:00:52]} Nf6 {[%emt 0:00:06]} 7. e3 {[%emt 0:01:27]} Bd6 {[%emt 0:00:17]} 8. Bxd6 {[%emt 0:01:16]} Qxd6 {[%emt 0:00:04]} 9. Bd3 {[%emt 0:01:22]} O-O {[%emt 0:00:14]} 10. h3 {[%emt 0:02:21]} Nc6 {[%emt 0:00:17]} 11. Rc1 {[%emt 0:01:14]} Ne7 {[%emt 0:00:07]} 12. Qc2 {[%emt 0:02:52]} g6 {[%emt 0:00:06]} 13. Ne2 {[%emt 0:04:41]} c6 {[%emt 0:01:23]} 14. Ng3 {[%emt 0:00:58]} Kg7 {[%emt 0:02:54]} 15. O-O {[%emt 0:03:50]} h5 {[%emt 0:00:04]} 16. Qc5 {[%emt 0:05:22]} Qd8 {[%emt 0:02:02]} 17. b4 {[%emt 0:01:39]} Rh8 {[%emt 0:00:34]} 18. a4 {[%emt 0:03:59]} h4 {[%emt 0:02:17]} 19. Ne2 {[%emt 0:01:48]} Bf5 {[%emt 0:00:25]} 20. Bxf5 {[%emt 0:00:46]} Nxf5 {[%emt 0:00:05]} 21. Qc2 {[%emt 0:05:12]} Nd6 {[%emt 0:04:11]} 22. Ne5 {[%emt 0:01:40]} Nd7 {[%emt 0:01:21]} 23. Nf4 {[%emt 0:04:55]} Nf8 {[%emt 0:02:16]} 24. Nxc6 {[%emt 0:05:03]} bxc6 {[%emt 0:01:04]} 25. Qxc6 {[%emt 0:01:21]} Ne6 {[%emt 0:05:11]} 26. Nxd5 {[%emt 0:04:44]} Ra7 {[%emt 0:00:44]} 27. b5 {[%emt 0:02:38]} axb5 {[%emt 0:03:49]} 28. axb5 {[%emt 0:00:15]} Nxb5 {[%emt 0:01:10]} 29. Qxb5 {[%emt 0:03:18]} Ra5 {[%emt 0:00:12]} 30. Qb7 {[%emt 0:01:15]} Qxd5 {[%emt 0:00:37]} 31. Qxd5 {[%emt 0:00:37]} Rxd5 {[%emt 0:00:05]} 32. Ra1 {[%emt 0:01:42]} Rb8 {[%emt 0:00:28]} 33. Rfb1 {[%emt 0:00:20]} Rxb1+ {[%emt 0:00:17]} 34. Rxb1 {[%emt 0:00:02]} Ra5 {[%emt 0:00:06]} 35. Rd1 {[%emt 0:02:03]} Kf6 {[%emt 0:00:33]} 36. d5 {[%emt 0:02:23]} Nc5 {[%emt 0:00:05]} 37. Rd4 {[%emt 0:00:42]} Ra4 {[%emt 0:01:48]} 38. Rd1 {[%emt 0:03:35]} Ke5 {[%emt 0:00:12]} 39. f3 {[%emt 0:04:20]} Ra3 {[%emt 0:01:38]} 40. d6 {[%emt 0:03:31]} Ke6 {[%emt 0:00:43]} 41. Kf2 {[%emt 0:04:48]} Rd3 {[%emt 0:00:08]} 42. Rxd3 {[%emt 0:00:26]} Nxd3+ {[%emt 0:00:05]} 43. Ke2 {[%emt 0:00:15]} Nc5 {[%emt 0:00:07]} 44. f4 {[%emt 0:00:21]} f5 {[%emt 0:00:27]} 0-1

[Event "30th Abu Dhabi Festival A-Open 2024"]
[Site "Abu Dhabi"]
[Date "2024.08.18"]
[Round "3.7"]
[White "Abdullayev, Elshad"]
[Black "Harutyunyan, Arman G."]
[Result "1-0"]
[ECO "E17"]
[WhiteElo "2205"]
[BlackElo "1957"]
[Annotator "ChessBase"]
[PlyCount "81"]
[EventDate "2024.08.15"]
[EventType "swiss"]
[EventCountry "UAE"]
[SourceTitle "playchess.com"]
[Source "ChessBase"]
[SourceQuality "1"]
[TimeControl "5400+30"]

1. d4 {[%emt 0:00:32]} Nf6 {[%emt 0:00:13]} 2. Nf3 {[%emt 0:00:21]} d5 {[%emt 0:00:14]} 3. g3 {[%emt 0:02:34]} e6 {[%emt 0:01:17]} 4. Bg2 {[%emt 0:00:12]} Be7 {[%emt 0:00:19]} 5. O-O {[%emt 0:00:13]} O-O {[%emt 0:00:23]} 6. b3 {[%emt 0:01:28]} b6 {[%emt 0:06:07]} 7. c4 {[%emt 0:00:28]} Bb7 {[%emt 0:02:03]} 8. Nbd2 {[%emt 0:13:10]} Nbd7 {[%emt 0:07:37]} 9. Bb2 {[%emt 0:04:38]} c5 {[%emt 0:05:52]} 10. dxc5 {[%emt 0:10:33]} Bxc5 {[%emt 0:09:59]} 11. Qc2 {[%emt 0:04:56]} Rc8 {[%emt 0:05:22]} 12. Rad1 {[%emt 0:01:35]} Qe7 {[%emt 0:57:04]} 13. Qb1 {[%emt 0:18:12]} Rfd8 {[%emt 0:00:00]} 14. cxd5 {[%emt 0:11:14]} Bxd5 {[%emt 0:00:00]} 15. e4 {[%emt 0:18:45]} Bb7 {[%emt 0:00:00]} 16. e5 {[%emt 0:03:27]} Nd5 {[%emt 0:00:00]} 17. Ne4 {[%emt 0:00:26]} Ba6 {[%emt 0:00:00]} 18. Rfe1 {[%emt 0:04:30]} Bb4 {[%emt 0:00:00]} 19. Nd6 {[%emt 0:01:20]} Bxe1 {[%emt 0:00:00]} 20. Rxe1 {[%emt 0:01:16]} Rc7 {[%emt 0:00:00]} 21. Ba3 {[%emt 0:00:36]} Nc5 {[%emt 0:00:00]} 22. h4 {[%emt 0:00:32]} Nc3 {[%emt 0:00:00]} 23. Qc2 {[%emt 0:00:15]} Nd3 {[%emt 0:00:00]} 24. Ng5 {[%emt 0:00:25]} g6 {[%emt 0:00:00]} 25. Re3 {[%emt 0:00:45]} Nd5 {[%emt 0:00:00]} 26. Qd2 {[%emt 0:00:01]} Nxe3 {[%emt 0:01:25]} 27. Qxe3 {[%emt 0:00:35]} Qd7 {[%emt 0:00:43]} 28. Nge4 {[%emt 0:00:47]} Kg7 {[%emt 0:01:30]} 29. Nf6 {[%emt 0:00:20]} Qe7 {[%emt 0:00:32]} 30. Ng4 {[%emt 0:00:43]} Nxe5 {[%emt 0:00:40]} 31. Qxe5+ {[%emt 0:00:27]} f6 {[%emt 0:00:12]} 32. Qf4 {[%emt 0:00:35]} Kh8 {[%emt 0:01:23]} 33. Nb5 {[%emt 0:00:29]} Rc5 {[%emt 0:00:50]} 34. Bxc5 {[%emt 0:00:35]} bxc5 {[%emt 0:00:06]} 35. Nc3 {[%emt 0:00:31]} Rf8 {[%emt 0:00:01]} 36. Ne3 {[%emt 0:00:29]} Kg7 {[%emt 0:00:11]} 37. Qa4 {[%emt 0:00:23]} Bc8 {[%emt 0:00:26]} 38. Qc6 {[%emt 0:00:27]} Rd8 {[%emt 0:00:42]} 39. Na4 {[%emt 0:00:17]} c4 {[%emt 0:00:30]} 40. bxc4 {[%emt 0:00:54]} Kf7 {[%emt 0:00:47]} 41. Nc3 {[%emt 0:00:32]} 1-0

[Event "30th Abu Dhabi Festival A-Open 2024"]
[Site "Abu Dhabi"]
[Date "2024.08.18"]
[Round "3.8"]
[White "Talgatov, Nazar"]
[Black "Li, Yage"]
[Result "1/2-1/2"]
[ECO "B15"]
[WhiteElo "2171"]
[BlackElo "1949"]
[Annotator "ChessBase"]
[PlyCount "81"]
[EventDate "2024.08.15"]
[EventType "swiss"]
[EventCountry "UAE"]
[SourceTitle "playchess.com"]
[Source "ChessBase"]
[SourceQuality "1"]
[TimeControl "5400+30"]

1. e4 {[%emt 0:00:08]} c6 {[%emt 0:00:01]} 2. d4 {[%emt 0:00:57]} d5 {[%emt 0:00:02]} 3. Nd2 {[%emt 0:01:00]} dxe4 {[%emt 0:00:09]} 4. Nxe4 {[%emt 0:00:06]} Nf6 {[%emt 0:00:07]} 5. Nxf6+ {[%emt 0:01:16]} exf6 {[%emt 0:00:02]} 6. c3 {[%emt 0:00:28]} Bd6 {[%emt 0:00:04]} 7. Bd3 {[%emt 0:00:46]} O-O {[%emt 0:00:11]} 8. Qc2 {[%emt 0:00:39]} h6 {[%emt 0:00:10]} 9. Ne2 {[%emt 0:00:23]} Re8 {[%emt 0:00:08]} 10. Be3 {[%emt 0:02:40]} Qc7 {[%emt 0:00:10]} 11. c4 {[%emt 0:01:20]} Bg4 {[%emt 0:06:54]} 12. O-O-O {[%emt 0:18:40]} Nd7 {[%emt 0:12:06]} 13. Qd2 {[%emt 0:06:42]} Bxe2 {[%emt 0:02:02]} 14. Bxe2 {[%emt 0:00:04]} f5 {[%emt 0:05:02]} 15. g3 {[%emt 0:06:26]} Nf6 {[%emt 0:01:53]} 16. Bd3 {[%emt 0:01:23]} Ne4 {[%emt 0:13:19]} 17. Qc2 {[%emt 0:01:25]} h5 {[%emt 0:08:22]} 18. c5 {[%emt 0:01:46]} Bf8 {[%emt 0:02:48]} 19. Bf4 {[%emt 0:06:48]} Qa5 {[%emt 0:00:58]} 20. f3 {[%emt 0:00:33]} Nf6 {[%emt 0:00:33]} 21. Bc4 {[%emt 0:00:23]} Nd5 {[%emt 0:06:42]} 22. Qxf5 {[%emt 0:07:32]} b6 {[%emt 0:03:04]} 23. Bd2 {[%emt 0:11:16]} Qa4 {[%emt 0:00:42]} 24. Qd3 {[%emt 0:00:11]} bxc5 {[%emt 0:05:27]} 25. dxc5 {[%emt 0:07:29]} Bxc5 {[%emt 0:06:59]} 26. Bb3 {[%emt 0:03:19]} Qd4 {[%emt 0:00:30]} 27. Qxd4 {[%emt 0:02:51]} Bxd4 {[%emt 0:00:02]} 28. Rhe1 {[%emt 0:02:58]} Ne3 {[%emt 0:02:46]} 29. Bxe3 {[%emt 0:01:28]} Bxe3+ {[%emt 0:00:02]} 30. Kc2 {[%emt 0:00:02]} Re7 {[%emt 0:00:41]} 31. Rd6 {[%emt 0:01:18]} c5 {[%emt 0:01:22]} 32. Bc4 {[%emt 0:02:51]} Rae8 {[%emt 0:01:15]} 33. Bb5 {[%emt 0:00:44]} Bd4 {[%emt 0:00:47]} 34. Re4 {[%emt 0:02:02]} Rxe4 {[%emt 0:03:14]} 35. fxe4 {[%emt 0:00:02]} Re6 {[%emt 0:07:33]} 36. Rd8+ {[%emt 0:03:01]} Kh7 {[%emt 0:00:02]} 37. Bc4 {[%emt 0:00:03]} Rf6 {[%emt 0:01:19]} 38. b4 {[%emt 0:01:40]} Rf2+ {[%emt 0:01:46]} 39. Kd3 {[%emt 0:00:07]} Rf3+ {[%emt 0:01:58]} 40. Ke2 {[%emt 0:00:38]} Rf2+ {[%emt 0:01:23]} 41. Kd3 {[%emt 0:00:08]} 1/2-1/2

[Event "30th Abu Dhabi Festival A-Open 2024"]
[Site "Abu Dhabi"]
[Date "2024.08.18"]
[Round "3.9"]
[White "Pranay Akula"]
[Black "Rzayev, Chingiz"]
[Result "1/2-1/2"]
[ECO "B01"]
[WhiteElo "1963"]
[BlackElo "2134"]
[Annotator "ChessBase"]
[PlyCount "123"]
[EventDate "2024.08.15"]
[EventType "swiss"]
[EventCountry "UAE"]
[SourceTitle "playchess.com"]
[Source "ChessBase"]
[SourceQuality "1"]
[TimeControl "5400+30"]

1. e4 {[%emt 0:00:07]} d5 {[%emt 0:00:30]} 2. exd5 {[%emt 0:00:34]} Nf6 {[%emt 0:00:04]} 3. Nf3 {[%emt 0:00:52]} Bg4 {[%emt 0:00:06]} 4. Bb5+ {[%emt 0:01:31]} Nbd7 {[%emt 0:00:05]} 5. h3 {[%emt 0:00:21]} a6 {[%emt 1:32:15]} 6. Be2 {[%emt 0:09:40]} Bxf3 {[%emt 0:00:00]} 7. Bxf3 {[%emt 0:00:53]} Ne5 {[%emt 0:01:00]} 8. Nc3 {[%emt 0:05:55]} Qd6 {[%emt 0:00:00]} 9. d4 {[%emt 0:09:05]} Nxf3+ {[%emt 0:00:00]} 10. Qxf3 {[%emt 0:00:12]} O-O-O {[%emt 0:00:00]} 11. O-O {[%emt 0:16:01]} Nxd5 {[%emt 0:00:00]} 12. Ne4 {[%emt 0:08:44]} Qg6 {[%emt 0:00:00]} 13. c4 {[%emt 0:03:25]} Nb4 {[%emt 0:00:00]} 14. Nc5 {[%emt 0:04:58]} Nc6 {[%emt 0:00:00]} 15. Be3 {[%emt 0:09:20]} e6 {[%emt 0:00:00]} 16. Nb3 {[%emt 0:01:58]} Be7 {[%emt 0:00:00]} 17. Rfd1 {[%emt 0:00:58]} Qf5 {[%emt 0:00:00]} 18. Qxf5 {[%emt 0:03:36]} exf5 {[%emt 0:00:00]} 19. Rac1 {[%emt 0:00:30]} Bf6 {[%emt 0:00:00]} 20. d5 {[%emt 0:01:27]} Ne5 {[%emt 0:00:00]} 21. Bd4 {[%emt 0:06:28]} Rhe8 {[%emt 0:00:00]} 22. Kf1 {[%emt 0:02:05]} Nd7 {[%emt 0:00:00]} 23. Re1 {[%emt 0:02:32]} g6 {[%emt 0:00:00]} 24. Rxe8 {[%emt 0:02:10]} Rxe8 {[%emt 0:00:00]} 25. Bxf6 Nxf6 {[%emt 0:00:00]} 26. Nd2 {[%emt 0:01:49]} Kd7 {[%emt 0:00:00]} 27. g3 {[%emt 0:02:01]} Kd6 {[%emt 0:00:00]} 28. b4 {[%emt 0:01:52]} h6 {[%emt 0:00:00]} 29. Nb3 {[%emt 0:00:51]} f4 {[%emt 0:00:00]} 30. Rd1 {[%emt 0:00:32]} fxg3 {[%emt 0:00:00]} 31. c5+ {[%emt 0:00:26]} Kd7 {[%emt 0:00:00]} 32. fxg3 {[%emt 0:02:01]} Ne4 {[%emt 0:02:02]} 33. Rd3 {[%emt 0:00:30]} Re5 {[%emt 0:00:22]} 34. Kg2 {[%emt 0:00:51]} b6 {[%emt 0:02:45]} 35. a4 {[%emt 0:00:50]} Rf5 {[%emt 0:01:42]} 36. a5 {[%emt 0:00:56]} bxa5 {[%emt 0:01:16]} 37. Nxa5 {[%emt 0:00:36]} Rf2+ {[%emt 0:00:15]} 38. Kg1 {[%emt 0:00:05]} Rb2 {[%emt 0:00:43]} 39. Nc6 {[%emt 0:00:16]} Ra2 {[%emt 0:01:13]} 40. Ne5+ {[%emt 0:00:09]} Ke7 {[%emt 0:00:19]} 41. Nc6+ {[%emt 0:00:07]} Kd7 {[%emt 0:00:05]} 42. Ne5+ {[%emt 0:01:57]} Ke7 {[%emt 0:00:05]} 43. Nc6+ {[%emt 0:00:18]} Kd7 {[%emt 0:00:42]} 44. Re3 {[%emt 0:01:06]} f5 {[%emt 0:00:04]} 45. Ne5+ {[%emt 0:02:25]} Ke7 46. Nxg6+ {[%emt 0:00:00]} Kf6 {[%emt 0:00:04]} 47. Nf4 {[%emt 0:00:00]} Rd2 {[%emt 0:05:49]} 48. Kf1 {[%emt 0:00:22]} Ke5 {[%emt 0:00:38]} 49. Ke1 {[%emt 0:00:39]} Rc2 {[%emt 0:01:09]} 50. Rd3 {[%emt 0:00:40]} Rc3 {[%emt 0:00:29]} 51. d6 {[%emt 0:00:23]} cxd6 {[%emt 0:00:47]} 52. Rd5+ {[%emt 0:00:32]} Kf6 {[%emt 0:00:04]} 53. Rxd6+ {[%emt 0:00:49]} Nxd6 {[%emt 0:00:51]} 54. Nd5+ {[%emt 0:00:09]} Ke5 {[%emt 0:00:10]} 55. Nxc3 {[%emt 0:00:11]} Nc8 {[%emt 0:00:06]} 56. b5 {[%emt 0:01:00]} axb5 {[%emt 0:00:24]} 57. Nxb5 {[%emt 0:00:03]} Kd5 {[%emt 0:00:10]} 58. Nd6 {[%emt 0:00:26]} Ne7 {[%emt 0:00:21]} 59. Nf7 {[%emt 0:00:06]} h5 {[%emt 0:00:08]} 60. Kf2 {[%emt 0:00:21]} Kxc5 {[%emt 0:00:09]} 61. Kf3 {[%emt 0:00:06]} Kd5 {[%emt 0:00:06]} 62. Kf4 {[%emt 0:02:43]} 1/2-1/2